[Event "Polish Youth 1st League 2022"]
[Site "Lublin"]
[Date "2022.06.30"]
[Round "6.26"]
[White "Kozlowski, Franciszek"]
[Black "Klaska, Szymon"]
[Result "1/2-1/2"]
[ECO "D04"]
[WhiteElo "1607"]
[BlackElo "1563"]
[Annotator "NA RC"]
[PlyCount "111"]
[EventDate "2022.06.24"]
[EventType "team-tourn"]
[EventCountry "POL"]
[SourceTitle "playchess.com"]
[Source "ChessBase"]
[SourceQuality "1"]
[TimeControl "40/5400+30:1800+30"]

1. d4 {[%emt 0:00:03]} d5 {[%emt 0:00:58]} 2. Nf3 {[%emt 0:00:52]} Nf6 {[%emt 0:00:48]} 3. e3 {[%emt 0:01:02]} Bg4 {[%emt 0:02:02]} 4. h3 {[%emt 0:00:51]} Bh5 {[%emt 0:00:23]} 5. Be2 {[%emt 0:01:51]} e6 {[%emt 0:01:39]} 6. Ne5 {[%emt 0:00:39]} Bxe2 {[%emt 0:01:01]} 7. Qxe2 {[%emt 0:00:05]} Nbd7 {[%emt 0:02:13]} 8. Nxd7 {[%emt 0:01:33]} Qxd7 {[%emt 0:00:50]} 9. O-O {[%emt 0:00:26]} Bd6 {[%emt 0:01:27]} 10. Nd2 {[%emt 0:01:23]} O-O {[%emt 0:01:19]} 11. e4 {[%emt 0:01:32]} e5 {[%emt 0:07:23]} 12. dxe5 {[%emt 0:04:56]} Bxe5 {[%emt 0:00:25]} 13. exd5 {[%emt 0:00:27]} Qxd5 {[%emt 0:00:53]} 14. Qc4 {[%emt 0:02:12]} Rfe8 {[%emt 0:01:34]} 15. Qxd5 {[%emt 0:01:01]} Nxd5 {[%emt 0:04:07]} 16. Nf3 {[%emt 0:02:44]} Bf6 {[%emt 0:02:16]} 17. c3 {[%emt 0:03:17]} a5 {[%emt 0:05:21]} 18. Bd2 {[%emt 0:03:50]} a4 {[%emt 0:00:56]} 19. Rac1 {[%emt 0:02:52]} Nb6 {[%emt 0:01:58]} 20. Rfe1 {[%emt 0:02:30]} Nc4 {[%emt 0:02:36]} 21. Rxe8+ {[%emt 0:01:22]} Rxe8 {[%emt 0:00:22]} 22. Rc2 {[%emt 0:02:31]} h6 {[%emt 0:03:09]} 23. Kf1 {[%emt 0:00:38]} g5 {[%emt 0:00:48]} 24. Bc1 {[%emt 0:00:56]} Kg7 {[%emt 0:03:23]} 25. b3 {[%emt 0:04:41]} axb3 {[%emt 0:00:22]} 26. axb3 {[%emt 0:00:05]} Na5 {[%emt 0:00:19]} 27. Nd2 {[%emt 0:01:37]} Re6 {[%emt 0:01:31]} 28. b4 {[%emt 0:02:53]} Nc6 {[%emt 0:00:27]} 29. f3 {[%emt 0:04:07]} Ne5 {[%emt 0:01:15]} 30. Ne4 {[%emt 0:00:32]} Be7 {[%emt 0:01:52]} 31. Re2 {[%emt 0:05:59]} Ra6 {[%emt 0:10:41]} 32. Be3 {[%emt 0:08:12]} Kg6 {[%emt 0:06:40]} 33. Bd4 {[%emt 0:05:39]} Nd3 {[%emt 0:04:05]} 34. g3 {[%emt 0:07:12]} f5 {[%emt 0:02:16]} 35. Nd2 {[%emt 0:02:07]} Bf6 {[%emt 0:03:24]} 36. Re3 {[%emt 0:10:43]} Ra1+ {[%emt 0:04:45]} 37. Ke2 {[%emt 0:01:03]} Nc1+ {[%emt 0:00:25]} 38. Kf2 {[%emt 0:01:07]} Bxd4 {[%emt 0:00:29]} 39. cxd4 {[%emt 0:00:29]} Ra2 {[%emt 0:00:21]} 40. Ke1 {[%emt 0:00:00]} Ra4 {[%emt 0:00:00]} 41. Re6+ {[%emt 0:04:46]} Kh5 {[%emt 0:06:53]} 42. Nf1 {[%emt 0:02:31]} g4 {[%emt 0:00:46]} 43. hxg4+ {[%emt 0:06:44]} fxg4 {[%emt 0:00:07]} 44. fxg4+ {[%emt 0:00:24]} Kxg4 {[%emt 0:00:17]} 45. Rxh6 {[%emt 0:00:21]} Rxb4 {[%emt 0:00:25]} 46. Kd2 {[%emt 0:00:50]} Na2 {[%emt 0:02:54]} 47. Kd3 {[%emt 0:05:40]} Rb3+ {[%emt 0:02:16]} 48. Kc2 {[%emt 0:00:19]} Rb4 {[%emt 0:00:30]} 49. Rh7 {[%emt 0:00:32]} c6 {[%emt 0:01:04]} 50. Rg7+ {[%emt 0:02:29]} Kf5 {[%emt 0:00:35]} 51. Nd2 {[%emt 0:06:11]} Rxd4 {[%emt 0:02:17]} 52. Rxb7 {[%emt 0:00:13]} Nb4+ {[%emt 0:00:26]} 53. Kc3 {[%emt 0:00:53]} Rd3+ {[%emt 0:00:09]} 54. Kxb4 {[%emt 0:00:15]} Rxd2 {[%emt 0:00:05]} 55. Kc5 {[%emt 0:00:13]} Rc2+ {[%emt 0:00:15]} 56. Kd4 {[%emt 0:00:26]} 1/2-1/2

[Event "Polish Youth 1st League 2022"]
[Site "Lublin"]
[Date "2022.06.30"]
[Round "6.27"]
[White "Ugorek, Kacper"]
[Black "Duda, Szymon"]
[Result "1-0"]
[ECO "A10"]
[WhiteElo "1696"]
[BlackElo "1707"]
[Annotator "NA RC"]
[PlyCount "79"]
[EventDate "2022.06.24"]
[EventType "team-tourn"]
[EventCountry "POL"]
[SourceTitle "playchess.com"]
[Source "ChessBase"]
[SourceQuality "1"]
[TimeControl "40/5400+30:1800+30"]

1. c4 {[%emt 0:00:03]} f5 {[%emt 0:02:03]} 2. Nc3 {[%emt 0:00:05]} Nf6 {[%emt 0:00:09]} 3. g3 {[%emt 0:00:08]} g6 {[%emt 0:00:36]} 4. Bg2 {[%emt 0:00:13]} Bg7 {[%emt 0:00:28]} 5. e3 {[%emt 0:05:31]} O-O {[%emt 0:01:06]} 6. Nge2 {[%emt 0:00:19]} d6 {[%emt 0:01:22]} 7. O-O {[%emt 0:00:20]} e5 {[%emt 0:03:11]} 8. d3 {[%emt 0:01:40]} c6 {[%emt 0:00:50]} 9. Rb1 {[%emt 0:03:24]} Be6 {[%emt 0:04:01]} 10. b4 {[%emt 0:11:50]} d5 {[%emt 0:05:08]} 11. cxd5 {[%emt 0:07:26]} cxd5 {[%emt 0:07:30]} 12. Na4 {[%emt 0:09:44]} Bf7 {[%emt 0:11:44]} 13. Bb2 {[%emt 0:04:02]} Re8 {[%emt 0:01:37]} 14. d4 {[%emt 0:08:42]} e4 {[%emt 0:02:18]} 15. Qd2 {[%emt 0:02:56]} g5 {[%emt 0:02:10]} 16. Rbc1 {[%emt 0:00:37]} Bh6 {[%emt 0:03:07]} 17. Bh3 {[%emt 0:02:32]} f4 {[%emt 0:09:51]} 18. exf4 {[%emt 0:12:47]} gxf4 {[%emt 0:02:49]} 19. gxf4 {[%emt 0:08:38]} Bh5 {[%emt 0:07:44]} 20. Ng3 {[%emt 0:05:24]} Bg4 {[%emt 0:10:22]} 21. Bxg4 {[%emt 0:03:54]} Nxg4 {[%emt 0:02:02]} 22. h3 {[%emt 0:01:16]} e3 {[%emt 0:13:20]} 23. fxe3 {[%emt 0:00:02]} Nxe3 {[%emt 0:02:23]} 24. Rf3 {[%emt 0:00:35]} Nc4 {[%emt 0:00:16]} 25. Qg2 {[%emt 0:00:25]} Re6 {[%emt 0:04:00]} 26. f5 {[%emt 0:06:26]} Ne3 {[%emt 0:01:56]} 27. Qe2 {[%emt 0:01:17]} Rd6 {[%emt 0:01:25]} 28. Rxe3 {[%emt 0:00:35]} Nc6 {[%emt 0:00:30]} 29. Nc5 {[%emt 0:01:30]} Bxe3+ {[%emt 0:00:18]} 30. Qxe3 {[%emt 0:00:02]} Rb8 {[%emt 0:00:42]} 31. Ne6 {[%emt 0:00:49]} Qf6 {[%emt 0:00:16]} 32. Kh2 {[%emt 0:01:48]} Kh8 {[%emt 0:00:18]} 33. b5 {[%emt 0:00:32]} Na5 {[%emt 0:00:51]} 34. Qf4 {[%emt 0:00:12]} Rdd8 {[%emt 0:00:15]} 35. Nxd8 {[%emt 0:00:13]} Rxd8 {[%emt 0:00:02]} 36. Qe5 {[%emt 0:00:23]} Qxe5 {[%emt 0:00:08]} 37. dxe5 {[%emt 0:00:02]} Nc4 38. Bd4 {[%emt 0:00:21]} b6 {[%emt 0:00:15]} 39. e6+ {[%emt 0:00:05]} Kg8 {[%emt 0:00:03]} 40. f6 {[%emt 0:00:00]} 1-0

[Event "Polish Youth 1st League 2022"]
[Site "Lublin"]
[Date "2022.06.30"]
[Round "6.28"]
[White "Wajda, Krzysztof"]
[Black "Dobosiewicz, Dawid"]
[Result "1/2-1/2"]
[ECO "E14"]
[WhiteElo "1494"]
[BlackElo "1795"]
[Annotator "NA RC"]
[PlyCount "71"]
[EventDate "2022.06.24"]
[EventType "team-tourn"]
[EventCountry "POL"]
[SourceTitle "playchess.com"]
[Source "ChessBase"]
[SourceQuality "1"]
[TimeControl "40/5400+30:1800+30"]

1. d4 {[%emt 0:00:03]} Nf6 {[%emt 0:00:03]} 2. c4 {[%emt 0:00:05]} e6 {[%emt 0:00:06]} 3. Nf3 {[%emt 0:00:09]} b6 {[%emt 0:00:06]} 4. e3 {[%emt 0:00:51]} Bb7 {[%emt 0:00:24]} 5. Be2 {[%emt 0:00:27]} Ne4 {[%emt 0:01:16]} 6. O-O {[%emt 0:01:45]} Be7 {[%emt 0:00:42]} 7. Nbd2 {[%emt 0:02:12]} d6 {[%emt 0:00:44]} 8. Nxe4 {[%emt 0:02:19]} Bxe4 {[%emt 0:00:06]} 9. b3 {[%emt 0:00:13]} Nd7 {[%emt 0:00:50]} 10. Bb2 {[%emt 0:00:39]} O-O {[%emt 0:00:36]} 11. Bd3 {[%emt 0:03:45]} f5 {[%emt 0:02:12]} 12. Qe2 {[%emt 0:02:10]} Nf6 {[%emt 0:04:04]} 13. Nd2 {[%emt 0:02:28]} d5 {[%emt 0:02:51]} 14. f3 {[%emt 0:02:28]} Bxd3 {[%emt 0:00:06]} 15. Qxd3 {[%emt 0:00:04]} Qd7 {[%emt 0:03:32]} 16. e4 {[%emt 0:09:39]} fxe4 {[%emt 0:00:29]} 17. fxe4 {[%emt 0:00:07]} dxe4 {[%emt 0:00:09]} 18. Nxe4 {[%emt 0:00:06]} Nxe4 {[%emt 0:00:06]} 19. Qxe4 {[%emt 0:00:04]} Bf6 {[%emt 0:00:14]} 20. Rfe1 {[%emt 0:04:03]} Rfe8 {[%emt 0:01:41]} 21. Re2 {[%emt 0:01:45]} Rad8 {[%emt 0:00:51]} 22. Rd1 {[%emt 0:03:18]} c6 {[%emt 0:11:31]} 23. Red2 {[%emt 0:09:32]} Qd6 {[%emt 0:02:35]} 24. Rd3 {[%emt 0:03:16]} Re7 {[%emt 0:02:09]} 25. Qe2 {[%emt 0:05:02]} Red7 {[%emt 0:03:22]} 26. Qe4 {[%emt 0:09:16]} b5 {[%emt 0:13:21]} 27. Bc1 {[%emt 0:06:30]} bxc4 {[%emt 0:04:14]} 28. bxc4 {[%emt 0:00:09]} Qe7 {[%emt 0:03:36]} 29. Bf4 {[%emt 0:03:54]} c5 {[%emt 0:07:35]} 30. d5 {[%emt 0:06:48]} exd5 {[%emt 0:00:35]} 31. Qxe7 {[%emt 0:00:08]} Rxe7 {[%emt 0:00:10]} 32. Rxd5 {[%emt 0:03:22]} Rxd5 {[%emt 0:00:30]} 33. cxd5 {[%emt 0:06:54]} Re4 {[%emt 0:01:10]} 34. Bg3 {[%emt 0:05:53]} Rd4 {[%emt 0:04:33]} 35. Rxd4 {[%emt 0:01:28]} Bxd4+ {[%emt 0:00:38]} 36. Kf1 {[%emt 0:00:53]} 1/2-1/2

[Event "Polish Youth 1st League 2022"]
[Site "Lublin"]
[Date "2022.06.30"]
[Round "6.29"]
[White "Barwinska, Ewa"]
[Black "Czarnecka, Lidia"]
[Result "1-0"]
[ECO "B47"]
[WhiteElo "1825"]
[BlackElo "1940"]
[Annotator "RC"]
[PlyCount "93"]
[EventDate "2022.06.24"]
[EventType "team-tourn"]
[EventCountry "POL"]
[SourceTitle "playchess.com"]
[Source "ChessBase"]
[SourceQuality "1"]
[TimeControl "40/5400+30:1800+30"]

1. e4 {[%emt 0:00:01]} c5 {[%emt 0:00:29]} 2. Nf3 {[%emt 0:00:08]} e6 {[%emt 0:00:35]} 3. d4 {[%emt 0:00:06]} cxd4 {[%emt 0:00:06]} 4. Nxd4 {[%emt 0:00:08]} Nc6 {[%emt 0:00:21]} 5. Nc3 {[%emt 0:00:31]} Qc7 {[%emt 0:00:43]} 6. Be2 {[%emt 0:00:15]} a6 {[%emt 0:00:28]} 7. O-O {[%emt 0:00:21]} Nf6 {[%emt 0:02:41]} 8. Be3 {[%emt 0:01:34]} b5 {[%emt 0:06:52]} 9. Nxc6 {[%emt 0:00:49]} dxc6 {[%emt 0:01:01]} 10. f4 {[%emt 0:07:06]} Be7 {[%emt 0:01:53]} 11. e5 {[%emt 0:05:15]} Nd5 {[%emt 0:01:26]} 12. Nxd5 {[%emt 0:01:36]} cxd5 {[%emt 0:00:19]} 13. c3 {[%emt 0:05:08]} Bd7 {[%emt 0:01:36]} 14. Qe1 {[%emt 0:03:19]} O-O {[%emt 0:02:01]} 15. Bd4 {[%emt 0:05:03]} Bc5 {[%emt 0:01:50]} 16. Rc1 {[%emt 0:02:17]} Qb6 {[%emt 0:01:39]} 17. Qf2 {[%emt 0:02:02]} Rac8 {[%emt 0:00:40]} 18. Rfd1 {[%emt 0:12:10]} Rc7 {[%emt 0:04:02]} 19. Bxc5 {[%emt 0:10:02]} Qxc5 {[%emt 0:00:19]} 20. Qxc5 {[%emt 0:01:56]} Rxc5 {[%emt 0:00:06]} 21. Rd4 {[%emt 0:02:31]} Rb8 {[%emt 0:04:29]} 22. Rcd1 {[%emt 0:02:51]} g6 {[%emt 0:03:03]} 23. Kf2 {[%emt 0:03:58]} Kf8 {[%emt 0:01:28]} 24. Ke3 {[%emt 0:01:30]} Ke7 {[%emt 0:00:28]} 25. g4 {[%emt 0:02:55]} Rb7 {[%emt 0:03:56]} 26. h4 {[%emt 0:03:02]} Kf8 {[%emt 0:03:59]} 27. a3 {[%emt 0:03:44]} Kg7 {[%emt 0:03:56]} 28. Rh1 {[%emt 0:00:58]} Rb8 {[%emt 0:01:02]} 29. Kd2 {[%emt 0:01:35]} Rbc8 {[%emt 0:00:53]} 30. h5 {[%emt 0:03:18]} a5 {[%emt 0:01:45]} 31. Rf1 {[%emt 0:05:33]} R8c7 {[%emt 0:02:25]} 32. Bd3 {[%emt 0:01:52]} Bc8 {[%emt 0:16:43]} 33. f5 {[%emt 0:06:32]} exf5 {[%emt 0:19:16]} 34. gxf5 {[%emt 0:00:39]} gxf5 {[%emt 0:03:46]} 35. Bxf5 {[%emt 0:00:07]} Bxf5 {[%emt 0:01:28]} 36. Rxf5 {[%emt 0:00:04]} a4 {[%emt 0:00:36]} 37. Ke3 {[%emt 0:02:47]} Re7 {[%emt 0:00:18]} 38. Rg4+ {[%emt 0:02:33]} Kh6 {[%emt 0:00:12]} 39. Rd4 {[%emt 0:01:08]} f6 {[%emt 0:01:30]} 40. Rxf6+ {[%emt 0:00:00]} Kxh5 {[%emt 0:00:00]} 41. Kf4 {[%emt 0:03:05]} Rg7 {[%emt 0:03:12]} 42. e6 {[%emt 0:03:26]} Rg1 {[%emt 0:00:31]} 43. Ke5 {[%emt 0:02:04]} Kg5 {[%emt 0:01:30]} 44. Rf8 {[%emt 0:00:52]} Re1+ {[%emt 0:00:10]} 45. Kd6 {[%emt 0:00:08]} Rc4 {[%emt 0:00:05]} 46. Rxc4 {[%emt 0:01:05]} dxc4 {[%emt 0:00:16]} 47. e7 {[%emt 0:00:09]} 1-0

[Event "Polish Youth 1st League 2022"]
[Site "Lublin"]
[Date "2022.06.30"]
[Round "6.30"]
[White "Slusarczyk, Anna"]
[Black "Matuszewska, Kinga"]
[Result "1-0"]
[ECO "D53"]
[WhiteElo "1544"]
[BlackElo "1085"]
[Annotator "NA RC"]
[PlyCount "57"]
[EventDate "2022.06.24"]
[EventType "team-tourn"]
[EventCountry "POL"]
[SourceTitle "playchess.com"]
[Source "ChessBase"]
[SourceQuality "1"]
[TimeControl "40/5400+30:1800+30"]

1. d4 {[%emt 0:00:01]} d5 {[%emt 0:00:05]} 2. c4 {[%emt 0:00:03]} e6 {[%emt 0:00:06]} 3. Nc3 {[%emt 0:00:03]} Nf6 {[%emt 0:00:08]} 4. Bg5 {[%emt 0:00:04]} Be7 {[%emt 0:00:11]} 5. Nf3 {[%emt 0:00:06]} Nbd7 {[%emt 0:01:21]} 6. e3 {[%emt 0:00:06]} a6 {[%emt 0:00:15]} 7. cxd5 {[%emt 0:00:13]} exd5 {[%emt 0:00:19]} 8. Bd3 {[%emt 0:01:54]} c6 {[%emt 0:11:24]} 9. O-O {[%emt 0:01:00]} O-O {[%emt 0:00:20]} 10. Qc2 {[%emt 0:06:28]} Re8 {[%emt 0:08:14]} 11. Rab1 {[%emt 0:02:16]} g6 {[%emt 0:06:20]} 12. b4 {[%emt 0:04:15]} b5 {[%emt 0:03:14]} 13. h3 {[%emt 0:04:14]} Nb6 {[%emt 0:03:38]} 14. Ne5 {[%emt 0:02:31]} Qc7 {[%emt 0:01:05]} 15. f4 {[%emt 0:27:06]} Nc4 {[%emt 0:23:55]} 16. f5 {[%emt 0:03:09]} Nxe5 {[%emt 0:13:23]} 17. dxe5 {[%emt 0:02:49]} Qxe5 {[%emt 0:02:45]} 18. Bf4 {[%emt 0:00:07]} Qxf4 {[%emt 0:06:43]} 19. Rxf4 {[%emt 0:00:37]} Bd6 {[%emt 0:00:05]} 20. Rf3 {[%emt 0:00:21]} Re7 {[%emt 0:00:35]} 21. fxg6 {[%emt 0:00:13]} Be5 {[%emt 0:01:09]} 22. Rbf1 {[%emt 0:00:52]} hxg6 {[%emt 0:00:32]} 23. Rxf6 {[%emt 0:00:32]} Bxf6 {[%emt 0:00:05]} 24. Rxf6 {[%emt 0:00:03]} Rxe3 {[%emt 0:01:57]} 25. Bxg6 {[%emt 0:00:11]} Be6 {[%emt 0:00:36]} 26. Ne2 {[%emt 0:01:00]} Kh8 {[%emt 0:02:49]} 27. Bxf7 {[%emt 0:00:16]} Bxf7 {[%emt 0:00:10]} 28. Rxf7 {[%emt 0:00:04]} Rg8 {[%emt 0:00:21]} 29. Rh7# {[%emt 0:00:05]} 1-0

[Event "Polish Youth 1st League 2022"]
[Site "Lublin"]
[Date "2022.07.01"]
[Round "7.1"]
[White "Szlosarczyk, Hubert"]
[Black "Madej, Marek"]
[Result "0-1"]
[ECO "E61"]
[WhiteElo "1650"]
[BlackElo "1978"]
[Annotator "RC"]
[PlyCount "104"]
[EventDate "2022.06.24"]
[EventType "team-tourn"]
[EventCountry "POL"]
[SourceTitle "playchess.com"]
[Source "ChessBase"]
[SourceQuality "1"]
[TimeControl "40/5400+30:1800+30"]

1. d4 {[%emt 0:00:33]} Nf6 {[%emt 0:00:06]} 2. c4 {[%emt 0:01:01]} g6 {[%emt 0:00:24]} 3. Nc3 {[%emt 0:01:21]} c5 {[%emt 0:00:50]} 4. d5 {[%emt 0:01:24]} d6 {[%emt 0:00:09]} 5. e4 {[%emt 0:00:52]} Bg7 {[%emt 0:00:10]} 6. h3 {[%emt 0:02:00]} O-O {[%emt 0:00:14]} 7. Bg5 {[%emt 0:01:42]} h6 {[%emt 0:01:41]} 8. Be3 {[%emt 0:01:35]} e6 {[%emt 0:00:48]} 9. Bd3 {[%emt 0:02:43]} Na6 {[%emt 0:01:19]} 10. Qd2 {[%emt 0:02:58]} exd5 {[%emt 0:07:34]} 11. exd5 {[%emt 0:02:32]} Re8 {[%emt 0:02:51]} 12. Nge2 {[%emt 0:01:09]} Kh7 {[%emt 0:08:30]} 13. O-O {[%emt 0:06:56]} Nb4 {[%emt 0:11:50]} 14. Bb1 {[%emt 0:04:19]} Rb8 {[%emt 0:14:00]} 15. a3 {[%emt 0:04:30]} Na6 {[%emt 0:00:17]} 16. Bd3 {[%emt 0:04:54]} Nc7 {[%emt 0:00:25]} 17. Rab1 {[%emt 0:04:20]} b5 {[%emt 0:19:11]} 18. b3 {[%emt 0:07:44]} Bd7 {[%emt 0:06:32]} 19. Ng3 {[%emt 0:04:49]} Qc8 {[%emt 0:05:38]} 20. Kh2 {[%emt 0:02:09]} bxc4 {[%emt 0:01:01]} 21. bxc4 {[%emt 0:00:34]} Qa6 {[%emt 0:00:15]} 22. a4 {[%emt 0:03:27]} Rb6 {[%emt 0:12:06]} 23. Nb5 {[%emt 0:01:48]} Nxb5 {[%emt 0:00:12]} 24. axb5 {[%emt 0:00:31]} Qb7 {[%emt 0:01:36]} 25. Qc2 {[%emt 0:01:32]} a6 {[%emt 0:01:11]} 26. bxa6 {[%emt 0:02:14]} Qxa6 {[%emt 0:00:05]} 27. Rxb6 {[%emt 0:00:19]} Qxb6 {[%emt 0:00:04]} 28. Rb1 {[%emt 0:00:05]} Qa6 {[%emt 0:00:39]} 29. Qb3 {[%emt 0:00:25]} h5 {[%emt 0:00:26]} 30. Bg5 {[%emt 0:03:40]} Re5 {[%emt 0:02:55]} 31. Bf4 {[%emt 0:02:01]} Re8 {[%emt 0:00:01]} 32. Bg5 {[%emt 0:03:31]} Kg8 {[%emt 0:00:51]} 33. Qb6 {[%emt 0:05:03]} Qa3 {[%emt 0:00:09]} 34. Rb3 {[%emt 0:05:07]} Qa2 {[%emt 0:00:20]} 35. Rb2 {[%emt 0:01:43]} Qxb2 {[%emt 0:00:58]} 36. Qxb2 {[%emt 0:00:45]} Ng4+ {[%emt 0:00:01]} 37. hxg4 {[%emt 0:00:12]} Bxb2 {[%emt 0:00:05]} 38. gxh5 {[%emt 0:00:30]} Kg7 {[%emt 0:01:18]} 39. hxg6 {[%emt 0:00:41]} fxg6 {[%emt 0:00:05]} 40. Bf4 {[%emt 0:00:00]} Be5 {[%emt 0:00:00]} 41. Bxe5+ {[%emt 0:05:50]} Rxe5 {[%emt 0:02:21]} 42. Be4 {[%emt 0:00:24]} Ba4 {[%emt 0:04:20]} 43. f4 {[%emt 0:04:37]} Re8 {[%emt 0:02:48]} 44. f5 {[%emt 0:01:08]} g5 {[%emt 0:00:02]} 45. Bf3 {[%emt 0:01:11]} Bc2 {[%emt 0:02:40]} 46. Kh3 {[%emt 0:00:30]} Kf6 {[%emt 0:02:18]} 47. Nh5+ {[%emt 0:03:52]} Ke5 {[%emt 0:03:14]} 48. Bg4 {[%emt 0:04:52]} Rh8 {[%emt 0:02:04]} 49. Kg3 {[%emt 0:03:28]} Bxf5 {[%emt 0:00:53]} 50. Bxf5 {[%emt 0:00:57]} Kxf5 {[%emt 0:00:38]} 51. Ng7+ {[%emt 0:00:05]} Kf6 {[%emt 0:00:09]} 52. Ne6 {[%emt 0:00:43]} Rh4 {[%emt 0:00:35]} 0-1

[Event "Polish Youth 1st League 2022"]
[Site "Lublin"]
[Date "2022.07.01"]
[Round "7.2"]
[White "Nowak, Filip"]
[Black "Kozlowski, Franciszek"]
[Result "1/2-1/2"]
[ECO "C42"]
[WhiteElo "1819"]
[BlackElo "1607"]
[Annotator "NA RC"]
[PlyCount "109"]
[EventDate "2022.06.24"]
[EventType "team-tourn"]
[EventCountry "POL"]
[SourceTitle "playchess.com"]
[Source "ChessBase"]
[SourceQuality "1"]
[TimeControl "40/5400+30:1800+30"]

1. e4 {[%emt 0:00:03]} e5 {[%emt 0:00:33]} 2. Nf3 {[%emt 0:00:06]} Nf6 {[%emt 0:00:08]} 3. Nxe5 {[%emt 0:00:04]} d6 {[%emt 0:00:07]} 4. Nf3 {[%emt 0:00:08]} Nxe4 {[%emt 0:00:06]} 5. c4 {[%emt 0:00:19]} Be7 {[%emt 0:05:29]} 6. d4 {[%emt 0:00:12]} d5 {[%emt 0:01:31]} 7. Nc3 {[%emt 0:00:35]} c6 {[%emt 0:03:45]} 8. Bd3 {[%emt 0:03:12]} Nf6 {[%emt 0:05:13]} 9. O-O {[%emt 0:00:48]} dxc4 {[%emt 0:02:12]} 10. Bxc4 {[%emt 0:00:20]} O-O {[%emt 0:01:09]} 11. d5 {[%emt 0:06:34]} Bg4 {[%emt 0:03:11]} 12. Bf4 {[%emt 0:01:27]} cxd5 {[%emt 0:01:36]} 13. Nxd5 {[%emt 0:00:21]} Nxd5 {[%emt 0:04:23]} 14. Bxd5 {[%emt 0:11:28]} Nc6 {[%emt 0:02:20]} 15. Bxc6 {[%emt 0:17:00]} bxc6 {[%emt 0:05:09]} 16. Qxd8 {[%emt 0:03:44]} Rfxd8 $11 {[%emt 0:00:22]} 17. Rac1 {[%emt 0:06:05]} Bxf3 {[%emt 0:01:20]} 18. gxf3 {[%emt 0:00:05]} c5 {[%emt 0:10:12]} 19. Rc2 {[%emt 0:04:53]} Rd5 {[%emt 0:01:10]} 20. Rfc1 {[%emt 0:00:52]} Rad8 {[%emt 0:04:24]} 21. Kf1 {[%emt 0:10:08]} Rd1+ {[%emt 0:00:56]} 22. Rxd1 {[%emt 0:00:06]} Rxd1+ {[%emt 0:00:06]} 23. Ke2 {[%emt 0:00:08]} Rd7 {[%emt 0:07:11]} 24. Be3 {[%emt 0:02:19]} Rb7 {[%emt 0:01:23]} 25. b3 {[%emt 0:03:33]} a5 {[%emt 0:00:57]} 26. Rc4 {[%emt 0:00:57]} f6 {[%emt 0:02:00]} 27. Ra4 {[%emt 0:07:43]} Bd8 {[%emt 0:02:49]} 28. Bxc5 {[%emt 0:00:42]} Rb5 {[%emt 0:00:54]} 29. Be3 {[%emt 0:01:39]} Kf7 {[%emt 0:01:00]} 30. Rc4 {[%emt 0:01:50]} Ke6 {[%emt 0:01:26]} 31. Rc5 {[%emt 0:01:38]} Rxc5 {[%emt 0:01:54]} 32. Bxc5 {[%emt 0:00:01]} Kd5 {[%emt 0:00:12]} 33. Be3 {[%emt 0:00:24]} g5 {[%emt 0:01:22]} 34. h3 {[%emt 0:00:05]} f5 {[%emt 0:00:16]} 35. Kd3 {[%emt 0:01:22]} h5 {[%emt 0:00:09]} 36. Ba7 {[%emt 0:01:58]} g4 {[%emt 0:01:07]} 37. fxg4 {[%emt 0:00:06]} fxg4 {[%emt 0:00:12]} 38. hxg4 {[%emt 0:00:45]} hxg4 {[%emt 0:01:24]} 39. Bd4 {[%emt 0:04:14]} Bc7 {[%emt 0:01:24]} 40. Bc3 {[%emt 0:00:00]} Bb6 {[%emt 0:00:00]} 41. Be1 {[%emt 0:02:14]} a4 {[%emt 0:04:51]} 42. bxa4 {[%emt 0:00:13]} Bxf2 {[%emt 0:00:29]} 43. Bxf2 {[%emt 0:00:01]} Kc6 {[%emt 0:00:10]} 44. Ke4 {[%emt 0:02:24]} Kb7 {[%emt 0:00:08]} 45. Kf4 {[%emt 0:00:06]} g3 {[%emt 0:00:09]} 46. Kxg3 {[%emt 0:00:23]} Ka8 {[%emt 0:00:04]} 47. Kf4 {[%emt 0:00:07]} Kb7 {[%emt 0:00:06]} 48. Ke5 {[%emt 0:00:03]} Ka8 {[%emt 0:00:07]} 49. Kd6 {[%emt 0:00:05]} Kb7 {[%emt 0:00:04]} 50. Bg3 {[%emt 0:00:32]} Ka8 {[%emt 0:00:11]} 51. Kc7 {[%emt 0:00:03]} Ka7 {[%emt 0:00:10]} 52. Kc8 {[%emt 0:00:13]} Ka8 {[%emt 0:00:05]} 53. a5 {[%emt 0:00:43]} Ka7 {[%emt 0:00:06]} 54. a6 {[%emt 0:00:03]} Ka8 {[%emt 0:00:09]} 55. Bf2 {[%emt 0:01:44]} 1/2-1/2

[Event "Polish Youth 1st League 2022"]
[Site "Lublin"]
[Date "2022.07.01"]
[Round "7.3"]
[White "Duda, Szymon"]
[Black "Grot, Blazej"]
[Result "0-1"]
[ECO "E06"]
[WhiteElo "1707"]
[BlackElo "1819"]
[Annotator "NA RC"]
[PlyCount "88"]
[EventDate "2022.06.24"]
[EventType "team-tourn"]
[EventCountry "POL"]
[SourceTitle "playchess.com"]
[Source "ChessBase"]
[SourceQuality "1"]
[TimeControl "40/5400+30:1800+30"]

1. d4 {[%emt 0:00:04]} Nf6 {[%emt 0:00:07]} 2. c4 {[%emt 0:00:04]} e6 {[%emt 0:00:03]} 3. Nf3 {[%emt 0:00:08]} d5 {[%emt 0:00:04]} 4. g3 {[%emt 0:00:13]} Be7 {[%emt 0:00:08]} 5. Bg2 {[%emt 0:00:10]} O-O {[%emt 0:00:08]} 6. O-O {[%emt 0:00:15]} c6 {[%emt 0:00:22]} 7. Qc2 {[%emt 0:01:31]} b6 {[%emt 0:00:11]} 8. Nbd2 {[%emt 0:04:54]} Bb7 {[%emt 0:02:00]} 9. b3 {[%emt 0:01:42]} Nbd7 {[%emt 0:02:40]} 10. Bb2 {[%emt 0:00:22]} Rc8 {[%emt 0:01:00]} 11. e4 {[%emt 0:03:31]} c5 {[%emt 0:01:25]} 12. e5 {[%emt 0:09:30]} Ne8 {[%emt 0:00:14]} 13. dxc5 {[%emt 0:01:49]} Nxc5 {[%emt 0:02:19]} 14. Rfd1 {[%emt 0:01:37]} Nc7 {[%emt 0:03:07]} 15. b4 {[%emt 0:03:59]} Nd7 {[%emt 0:00:58]} 16. Qb3 {[%emt 0:02:42]} dxc4 {[%emt 0:10:39]} 17. Nxc4 {[%emt 0:02:36]} Bd5 {[%emt 0:01:56]} 18. Nd4 {[%emt 0:08:53]} Bxg2 {[%emt 0:04:35]} 19. Kxg2 {[%emt 0:00:46]} Nd5 {[%emt 0:01:04]} 20. a3 {[%emt 0:01:32]} Qc7 {[%emt 0:02:14] [#]} 21. Rac1 $15 {[%emt 0:01:24]} (21. Nf5 $1 $11) 21... Qb7 {[%emt 0:07:14]} 22. Qf3 {[%emt 0:05:32]} Rxc4 {[%emt 0:00:39]} 23. Nf5 {[%emt 0:04:20]} Rxc1 {[%emt 0:02:40]} 24. Nxe7+ {[%emt 0:01:48]} Nxe7 {[%emt 0:00:05]} 25. Qxb7 {[%emt 0:00:29]} Rxd1 {[%emt 0:00:02]} 26. a4 {[%emt 0:02:52]} Rc8 {[%emt 0:05:58]} 27. b5 {[%emt 0:02:42]} Rc2 {[%emt 0:00:57]} 28. Ba3 {[%emt 0:04:29]} Nc8 {[%emt 0:01:27]} 29. Bd6 {[%emt 0:00:30]} Nf8 {[%emt 0:01:46]} 30. Bb4 {[%emt 0:01:48]} Rd4 {[%emt 0:01:49]} 31. Bd6 {[%emt 0:02:15]} Rdd2 {[%emt 0:00:26]} 32. h4 {[%emt 0:01:16]} Rxf2+ {[%emt 0:00:12]} 33. Kh3 {[%emt 0:00:04]} h5 {[%emt 0:00:18]} 34. g4 {[%emt 0:00:09]} Rh2+ {[%emt 0:00:09]} 35. Kg3 {[%emt 0:00:10]} Rhg2+ {[%emt 0:00:09]} 36. Kf3 {[%emt 0:00:33]} hxg4+ {[%emt 0:00:44]} 37. Kf4 {[%emt 0:00:15]} Ng6+ {[%emt 0:00:39]} 38. Kg5 {[%emt 0:00:12]} Nxd6 {[%emt 0:00:24]} 39. Qb8+ {[%emt 0:00:37]} Nc8 {[%emt 0:00:05]} 40. h5 {[%emt 0:00:00]} Nxe5 {[%emt 0:00:00]} 41. h6 {[%emt 0:00:19]} Nf3+ {[%emt 0:00:53]} 42. Kf4 {[%emt 0:00:09]} g5+ {[%emt 0:00:59]} 43. Ke3 {[%emt 0:00:15]} Rge2+ {[%emt 0:00:08]} 44. Kd3 {[%emt 0:00:09]} Rcd2+ {[%emt 0:00:24]} 0-1